bitfinex/quotes_ETHUSD_20240811
["timestamp","ask_amount","ask_price","bid_price","bid_amount"]
[1723360554919,2.61958,2672.2,2671.5,2.62016]
[1723360555217,2.61954,2672.3,2671.6,2.62014]
[1723360555504,2.61954,2672.3,2671.6,0.75064]
[1723360555505,0.07549872,2672.2,2671.6,0.75064]
[1723360555709,2.40199872,2672.2,2671.6,3.75064]
[1723360555913,2.40199872,2672.2,2671.6,3.0]
[1723360556079,2.61969,2672.1,2671.6,3.0]
[1723360556271,2.69526872,2672.0,2671.6,3.0]
[1723360556474,2.69526872,2672.0,2671.4,5.62033]
[1723360556679,2.69526872,2672.0,2671.4,3.0]
[1723360556891,2.61977,2672.0,2671.4,3.562038]
[1723360557092,2.61977,2672.0,2671.4,6.182338]
[1723360557511,0.07549872,2671.9,2671.1,2.2661]
[1723360557820,0.07549872,2671.9,2670.9,2.62083]
[1723360557821,2.62021,2671.6,2670.9,2.62083]
[1723360557988,2.62021,2671.6,2671.0,0.524172]
[1723360558984,2.69575872,2671.5,2671.0,0.524172]
[1723360559197,2.69575872,2671.5,2670.9,2.62083]
[1723360559409,2.62035,2671.4,2671.0,3.0]
[1723360559614,2.62035,2671.4,2670.7,5.2661]
[1723360559779,2.62035,2671.4,2670.8,0.48882452]
[1723360559979,2.62035,2671.4,2670.8,3.48882452]
[1723360560515,2.62035,2671.4,2670.8,6.10975452]
[1723360560697,0.07549872,2671.3,2670.8,6.10975452]
[1723360561298,0.07549872,2671.3,2670.6,5.24321525]
[1723360561610,2.62054,2671.2,2670.6,2.62212525]
[1723360561916,0.07549872,2671.3,2670.7,2.621]
[1723360562113,2.69602872,2671.3,2670.6,2.62212525]
[1723360562290,0.07549872,2671.3,2670.6,3.37305878]
[1723360562697,0.07549872,2671.3,2670.7,3.0]
[1723360563838,2.69593872,2671.3,2670.7,3.0]
[1723360564179,2.378,2671.1,2670.6,0.00105525]
[1723360564385,2.378,2671.1,2670.1,2.62161]
[1723360564386,2.62101,2670.8,2670.1,2.62161]
[1723360564587,0.07549872,2670.7,2670.0,2.62163]
[1723360564780,0.07549872,2670.7,2670.1,2.62161]
[1723360564985,2.62115,2670.6,2670.0,3.119883]
[1723360565216,2.62115,2670.6,2669.7,2.62191]
[1723360565217,0.07549872,2670.5,2669.7,2.62191]
[1723360565381,2.62141,2670.4,2669.7,2.62191]
[1723360566483,0.07549872,2670.5,2669.9,2.62177]
[1723360566701,2.69673872,2670.5,2669.9,2.62177]
[1723360567083,7.3,2670.6,2670.0,0.04825531]
[1723360567283,7.3,2670.6,2670.5,2.62123]
[1723360567519,7.3,2670.6,2670.5,2.883353]
[1723360567905,7.3,2670.6,2670.5,8.504583]
[1723360568088,7.3,2670.6,2670.5,5.883353]
[1723360568289,7.3,2670.6,2670.5,3.262123]
[1723360568716,4.97206,2671.2,2670.5,5.883263]
[1723360568910,4.97206,2671.2,2670.6,5.62111]
[1723360569214,2.3515,2671.2,2670.7,2.62097]
[1723360569415,9.678,2671.3,2670.7,0.07487641]
[1723360569715,9.678,2671.3,2670.8,2.62087]
[1723360569905,0.07549872,2671.2,2670.6,9.40007645]
[1723360570105,0.07549872,2671.2,2670.6,3.0]
[1723360570306,9.678,2671.3,2670.7,2.62103]
[1723360570714,7.3,2671.3,2670.9,2.62076]
[1723360571026,7.3,2671.3,2671.0,2.62067]
[1723360571229,7.3,2671.3,2671.1,2.62063]
[1723360571435,9.678,2671.7,2671.1,2.62063]
[1723360571644,2.62026,2671.5,2671.0,0.07487341]
[1723360571842,2.69573872,2671.6,2671.0,2.62073]
[1723360572040,2.69573872,2671.6,2670.9,2.62076]
[1723360572337,11.14295,2671.7,2670.9,2.62076]
[1723360572338,9.678,2671.7,2671.1,2.62057]
[1723360572546,7.3,2671.7,2671.3,2.62044]
[1723360572745,4.97137,2671.9,2671.3,2.69530239]
[1723360573045,9.678,2672.0,2671.3,2.69530273]
[1723360573248,9.678,2672.0,2671.5,2.62019]
[1723360573453,9.678,2672.0,2671.5,2.6950458]
[1723360573650,9.678,2672.0,2671.5,2.6950258]
[1723360573944,7.3,2672.0,2671.5,5.3151958]
[1723360574130,7.3,2672.0,2671.5,2.6950258]
[1723360574333,7.3,2672.0,2671.8,2.61993]
[1723360574649,4.7295,2672.3,2671.6,2.62014]
[1723360574650,2.378,2672.6,2672.0,2.61974]
[1723360575005,2.378,2672.6,2672.1,0.07483901]
[1723360575205,2.877698,2672.6,2672.1,0.07483901]
[1723360575419,2.877698,2672.6,2672.1,2.61958]
[1723360575751,2.69447872,2672.8,2672.2,2.61953]
[1723360576041,2.69447872,2672.8,2672.0,2.61968]
[1723360576042,0.07549872,2672.7,2672.0,2.61968]
[1723360576617,2.378,2673.0,2672.5,2.61926]
[1723360576815,2.69409872,2673.2,2672.6,0.07482583]
[1723360577011,2.6186,2673.2,2672.6,2.69392583]
[1723360577805,2.61872,2673.1,2672.5,0.0748232]
[1723360578029,2.61872,2673.1,2672.5,5.6940832]
[1723360578661,2.61872,2673.1,2672.5,5.69408529]
[1723360579363,2.61892,2672.9,2672.1,2.61958]
[1723360579670,3.24649872,2673.0,2671.9,5.3609]
[1723360579671,2.61913,2672.7,2671.9,5.3609]
[1723360579839,2.61913,2672.7,2672.0,0.55]
[1723360579840,2.61934,2672.5,2672.0,0.55]
[1723360580043,2.61934,2672.5,2672.0,3.55]
[1723360580457,2.61913,2672.7,2672.0,3.55]
[1723360580638,2.61925,2672.6,2672.0,3.55]
[1723360580962,2.61928,2672.5,2672.0,3.55]
[1723360581464,2.61936,2672.4,2672.0,3.55]
[1723360581639,2.61956,2672.2,2671.5,4.93301]
[1723360581845,2.61956,2672.2,2671.6,3.0]
[1723360582948,2.61956,2672.2,2671.6,5.62013]
[1723360583148,2.61956,2672.2,2671.7,0.55]
[1723360583952,2.61956,2672.2,2671.6,3.0]
[1723360583953,2.61976,2672.0,2671.6,3.0]
[1723360584157,2.61976,2672.0,2671.2,9.6628]
[1723360584158,2.61976,2672.0,2671.2,4.93327]
[1723360584351,2.61996,2671.8,2671.3,0.755387]
[1723360584552,2.61996,2671.8,2671.1,2.6206]
[1723360584755,2.62016,2671.6,2670.9,5.457776]
[1723360584953,2.61996,2671.8,2671.1,2.62055]
[1723360586255,2.62021,2671.6,2671.2,3.0]
[1723360586465,2.62043,2671.4,2671.0,3.0]
[1723360586665,2.62046,2671.3,2670.7,2.62099]
[1723360586841,2.69595872,2671.3,2670.7,3.376488]
[1723360587043,2.65937087,2671.6,2670.7,3.376488]
[1723360587044,2.62064,2671.1,2670.7,0.755498]
[1723360587394,2.62064,2671.1,2670.5,4.93396]
[1723360587742,2.62055,2671.2,2670.5,4.93396]
[1723360587956,2.62055,2671.2,2670.5,7.55512]
[1723360588166,2.62055,2671.2,2670.7,2.62103]
[1723360588658,2.62055,2671.2,2670.8,3.0]
[1723360588891,2.62055,2671.2,2670.5,4.93395]
[1723360588892,2.62055,2671.2,2670.6,5.62112]
[1723360589194,2.62055,2671.2,2670.6,6.114515]
[1723360589973,0.07549872,2671.1,2670.6,3.0]
[1723360590155,2.62076,2671.0,2670.6,3.0]
[1723360590472,0.07549872,2671.1,2670.4,3.0]
[1723360590673,2.62055,2671.2,2670.5,3.1712]
[1723360590674,2.69604872,2671.2,2670.5,3.1712]
[1723360590989,0.07549872,2671.3,2670.7,2.62097]
[1723360591184,9.92038,2671.4,2670.9,2.62082]
[1723360591185,7.3,2671.4,2670.9,2.62082]
[1723360591557,7.3,2671.4,2671.1,2.62064]
[1723360592142,7.3,2671.4,2671.1,3.15227351]
[1723360592337,7.3,2671.4,2670.7,3.0]
[1723360592338,7.3,2671.4,2671.3,2.62044]
[1723360592543,2.6198,2672.0,2671.3,2.62044]
[1723360592744,2.69535872,2671.9,2671.2,2.62046]
[1723360592939,2.3898,2672.1,2671.5,2.62022]
[1723360593162,0.818039,2672.0,2671.6,0.07485436]
[1723360593379,5.79059,2672.2,2671.6,0.07485436]
[1723360594290,5.79059,2672.2,2671.6,2.69499436]
[1723360594465,5.79059,2672.2,2671.7,0.07485185]
[1723360594907,5.79059,2672.2,2671.6,2.69390753]
[1723360595212,6.94606772,2672.2,2671.6,2.69390753]
[1723360595860,2.61967,2672.1,2671.4,5.24064]
[1723360596087,2.69516872,2672.1,2671.4,2.62032]
[1723360596257,2.61978,2672.0,2671.2,4.9333]
[1723360596460,2.61978,2672.0,2671.3,3.0]
[1723360596461,2.62014,2671.7,2671.3,3.0]
[1723360596660,2.62014,2671.7,2671.1,2.62062]
[1723360596873,2.62014,2671.7,2671.2,3.55]
[1723360597293,2.69541872,2671.9,2671.2,6.17054]
[1723360597460,3.06060597,2671.9,2671.2,6.17054]
[1723360597663,3.06060597,2671.9,2671.3,2.62042]
[1723360597970,0.36518725,2671.9,2671.3,2.62042]
[1723360598174,3.65187249,2672.0,2671.3,2.62042]
[1723360598587,2.61987,2671.9,2671.3,2.62042]
[1723360599087,2.69544872,2671.8,2671.2,3.55]
[1723360599306,2.98515225,2671.8,2671.2,3.55]
[1723360599489,2.69556872,2671.7,2671.2,3.0]
[1723360599665,2.69556872,2671.7,2671.1,3.0]
[1723360600876,0.36520225,2671.8,2671.1,3.0]
[1723360601219,2.69554872,2671.7,2671.1,3.793346]
[1723360601381,2.69554872,2671.7,2671.1,3.0]
[1723360602108,2.62031,2671.5,2671.1,3.0]
[1723360602275,2.69558872,2671.7,2671.0,2.62067]
[1723360602480,2.69558872,2671.7,2671.1,3.0]
[1723360602883,2.62021,2671.6,2671.1,3.0]
[1723360603113,3.46626859,2671.6,2671.1,3.0]
[1723360603384,2.62026,2671.5,2671.1,3.0]
[1723360605325,3.46620859,2671.6,2671.1,3.0]
[1723360605830,4.794,2671.5,2670.6,2.62108]
[1723360606000,2.62062,2671.2,2670.7,3.0]
[1723360606200,2.62066,2671.1,2670.7,3.0]
[1723360607621,2.69625872,2671.0,2670.7,3.0]
[1723360607796,2.69625872,2671.0,2670.5,3.0]
[1723360607797,3.22795059,2671.0,2670.5,3.0]
[1723360608441,0.53169187,2671.0,2670.5,3.0]
[1723360608657,2.45649872,2671.2,2670.6,2.6211]
[1723360608803,5.07709872,2671.2,2670.6,2.6211]
[1723360609406,2.62049,2671.3,2670.8,2.62093]
[1723360610314,5.00128,2671.5,2670.9,2.62076]
[1723360610520,5.07677872,2671.5,2670.9,2.62076]
[1723360610712,7.79546459,2671.5,2670.9,2.62076]
[1723360611543,7.79546459,2671.5,2671.0,5.2414]
[1723360611544,5.09968587,2671.5,2671.0,5.2414]
[1723360611853,2.381,2671.5,2671.0,2.62068]
[1723360612055,2.381,2671.5,2671.1,2.62063]
[1723360612457,7.3,2671.6,2671.2,2.69534635]
[1723360612658,2.381,2671.8,2671.2,5.31581635]
[1723360612836,2.381,2671.8,2671.2,2.69533635]
[1723360613230,2.381,2671.8,2671.2,5.31581635]
[1723360613433,2.381,2671.8,2671.2,2.62047]
[1723360613957,5.00096,2671.8,2671.2,2.62047]
[1723360614133,5.00096,2671.8,2671.2,2.69533314]
[1723360614966,2.381,2671.8,2671.3,2.62037]
[1723360615125,5.03271,2672.1,2671.4,3.0]
[1723360615126,2.381,2672.1,2671.4,3.0]
[1723360615329,2.381,2672.1,2671.6,2.62014]
[1723360615739,5.00069,2672.1,2671.4,2.62028]
[1723360615940,5.00069,2672.1,2671.5,3.0]
[1723360616446,0.07549872,2672.0,2671.5,3.0]
[1723360616953,2.61991,2671.9,2671.5,3.0]
[1723360617161,2.61991,2671.9,2671.3,3.0]
[1723360617326,2.61991,2671.9,2671.0,4.94259]
[1723360617327,2.61997,2671.8,2671.0,4.94259]
[1723360617530,2.69540872,2671.9,2671.3,2.62044]
[1723360617729,2.61991,2671.9,2671.3,3.237484]
[1723360617929,2.61991,2671.9,2671.4,3.0]
[1723360619825,2.61996,2671.8,2671.3,3.0]
[1723360620158,3.15149687,2671.8,2671.3,3.0]
[1723360620376,2.61996,2671.8,2671.3,3.0]
[1723360620584,2.61996,2671.8,2671.3,5.62042]
[1723360621163,2.61996,2671.8,2671.3,3.0]
[1723360621532,5.31509872,2672.0,2671.3,5.62043]
[1723360621834,2.61986,2671.9,2671.3,5.62043]
[1723360624253,2.61996,2671.8,2671.3,5.62043]
[1723360625638,3.20289559,2672.0,2671.3,5.62043]
[1723360626931,3.20289559,2672.0,2671.3,5.62036]
[1723360627134,3.20289559,2672.0,2671.4,2.62027]
[1723360627365,3.20289559,2672.0,2671.5,5.4662]
[1723360627663,3.12739687,2672.0,2671.5,8.08644]
[1723360628165,3.12739687,2672.0,2671.5,5.4662]
[1723360628330,3.12739687,2672.0,2671.5,2.4662]
[1723360629338,0.07549872,2671.9,2671.5,2.4662]
[1723360629538,3.20289559,2672.0,2671.5,2.4662]
[1723360629964,2.61987,2671.9,2671.5,2.4662]
[1723360630265,2.69546872,2671.8,2671.4,3.0]
[1723360630440,2.69546872,2671.8,2671.2,2.4662]
[1723360630441,2.61997,2671.8,2671.2,5.08672]
[1723360630650,2.61997,2671.8,2671.3,3.0]
[1723360630843,0.55838956,2671.9,2671.4,0.06348573]
[1723360631054,7.3,2672.0,2671.7,5.08619]
[1723360631356,7.3,2672.0,2671.8,2.61993]
[1723360631559,9.681,2672.4,2671.8,2.61995]
[1723360631748,1.469603,2672.3,2671.8,2.61995]
[1723360632657,1.469603,2672.3,2671.9,2.61979]
[1723360632969,7.3,2672.4,2672.1,2.61965]
[1723360633147,7.3,2672.4,2671.9,2.61979]
[1723360633347,7.3,2672.4,2672.0,2.61972]
[1723360635675,7.3,2672.4,2672.0,5.23941]
[1723360635876,7.3,2672.4,2672.0,2.61969]
[1723360636648,2.61922,2672.6,2672.0,5.23938]
[1723360636859,5.59990679,2672.6,2672.0,2.61969]
[1723360637477,2.61922,2672.6,2672.0,2.61969]
[1723360638286,2.61922,2672.6,2672.0,2.61968]
[1723360638484,7.60192786,2672.7,2672.1,5.08579]
[1723360639201,2.6192,2672.6,2672.1,2.4662]
[1723360639497,2.61958,2672.2,2671.8,3.0]
[1723360639695,2.69516872,2672.1,2671.7,3.0]
[1723360639866,2.69516872,2672.1,2671.6,3.0]
[1723360639867,2.61976,2672.0,2671.6,3.0]
[1723360640306,2.61996,2671.8,2671.1,5.08678]
[1723360640520,0.07549872,2671.7,2671.1,5.08678]
[1723360640717,2.69564872,2671.7,2671.1,5.08678]
[1723360641361,2.69564872,2671.7,2671.1,7.70736]
[1723360641566,3.36738487,2671.7,2671.2,3.0]
[1723360641995,0.74723487,2671.7,2671.2,5.62052]
[1723360642192,0.07549872,2671.8,2671.3,2.62042]
[1723360642759,2.69545872,2671.8,2671.3,2.62042]
[1723360643093,0.07549872,2671.7,2671.3,2.62042]
[1723360643393,2.69545872,2671.8,2671.2,3.0]
[1723360644192,2.69554872,2671.7,2671.2,3.0]
[1723360644413,2.61972,2672.1,2671.3,2.62038]
[1723360644610,5.0006,2672.2,2671.4,5.8653]
[1723360644611,2.381,2672.2,2671.4,5.8653]
[1723360644811,2.381,2672.2,2671.7,2.62002]
[1723360644964,0.51954731,2672.1,2671.7,2.62002]
[1723360645164,0.51954731,2672.1,2671.6,2.62015]
[1723360645404,0.51954731,2672.1,2671.4,5.8653]
[1723360645405,2.61977,2672.0,2671.4,5.8653]
[1723360645582,0.07549872,2671.9,2671.4,5.3153]
[1723360645770,4.94015,2671.8,2671.2,3.0]
[1723360645972,2.62021,2671.6,2670.9,2.62076]
[1723360646296,2.62027,2671.5,2670.9,2.62076]
[1723360647105,7.3,2671.8,2671.2,2.3153]
[1723360647267,7.3,2671.8,2671.3,2.62037]
[1723360647473,7.3,2671.8,2671.5,2.62023]
[1723360647695,0.5595816,2672.0,2671.5,2.62023]
[1723360647912,7.3,2672.2,2671.6,2.3153]
[1723360648223,7.3,2672.2,2671.8,2.61994]
[1723360648383,7.3,2672.2,2671.6,7.93537]
[1723360648384,9.91957,2672.2,2671.6,7.93537]
[1723360649368,11.173468,2672.2,2671.6,7.93537]
[1723360650487,7.3,2672.2,2671.7,2.62002]
[1723360650690,7.3,2672.2,2671.8,3.0]
[1723360651200,9.681,2672.5,2672.1,2.3153]
[1723360651406,22.10906,2672.8,2672.1,5.3153]
[1723360651610,2.442926,2672.7,2672.1,5.39013797]
[1723360651902,2.61917,2672.6,2672.1,5.39013797]
[1723360652089,5.23842,2672.6,2672.1,5.3153]
[1723360652299,5.07566872,2672.6,2672.1,3.0]
[1723360652509,5.07566872,2672.6,2671.9,5.3153]
[1723360652510,0.75185947,2672.5,2671.9,5.3153]
[1723360652722,0.07549872,2672.4,2671.9,5.3153]
[1723360653005,2.69486872,2672.4,2671.9,5.3153]
[1723360653172,0.34467282,2672.3,2671.9,5.3153]
[1723360653893,2.62003,2671.8,2671.2,2.3153]
[1723360654087,2.69560872,2671.7,2671.2,2.3153]
[1723360654284,2.69560872,2671.7,2671.1,2.62056]
[1723360656731,2.69560872,2671.7,2671.2,3.0]
[1723360657419,2.381,2671.9,2671.2,3.0]
[1723360657721,7.3,2672.0,2671.6,2.62015]
[1723360658333,7.3,2672.0,2671.9,4.93515]
[1723360658622,5.00031,2672.5,2671.9,7.93515]
[1723360658623,12.30031,2672.5,2671.9,7.93515]
[1723360658990,14.91965,2672.5,2671.9,7.93515]
[1723360659189,1.723985,2672.4,2671.9,7.93509]
[1723360659392,9.681,2672.5,2671.9,7.93509]
[1723360659816,0.07549872,2672.4,2671.9,7.93509]
[1723360660857,0.07549872,2672.4,2671.9,3.0]
[1723360660858,2.61948,2672.3,2671.9,3.0]
[1723360661157,2.61948,2672.3,2671.8,3.0]
[1723360661158,2.61967,2672.1,2671.8,3.0]
[1723360661311,3.15113487,2672.1,2671.6,3.0]
[1723360661511,0.07549872,2672.0,2671.6,3.0]
[1723360661838,3.22663359,2672.1,2671.6,5.62014]
[1723360662730,3.15113487,2672.1,2671.6,5.62014]
[1723360663329,3.15113487,2672.1,2671.6,3.0]
[1723360663538,2.61986,2671.9,2671.6,3.0]
[1723360663840,2.61986,2671.9,2671.3,5.0878]
[1723360663841,2.79396208,2672.0,2671.5,2.62024]
[1723360664059,2.79396208,2672.0,2671.6,3.0]
[1723360664619,5.41378208,2672.0,2671.6,3.0]
[1723360664840,2.79396208,2672.0,2671.4,5.62034]
[1723360665040,5.41380208,2672.0,2671.4,3.0]
[1723360665233,2.79396208,2672.0,2671.4,3.0]
[1723360665630,0.54136821,2671.9,2671.4,3.0]
[1723360665830,2.62013,2671.7,2670.9,7.70897]
[1723360666031,2.69565872,2671.6,2671.0,3.0]
[1723360666728,2.69565872,2671.6,2671.0,5.62072]
[1723360668229,0.07549872,2671.6,2671.0,5.62072]
[1723360668467,2.69566872,2671.6,2671.0,5.62072]
[1723360668667,2.6203,2671.5,2671.0,3.0]
[1723360668875,2.62049,2671.3,2670.7,2.62097]
[1723360669075,0.07549872,2671.2,2670.7,2.62097]
[1723360669583,0.07549872,2671.2,2670.7,5.24194]
[1723360669788,0.07549872,2671.2,2670.7,2.62097]
[1723360670088,0.07549872,2671.2,2670.8,3.0]
[1723360670455,3.20264616,2671.5,2670.9,5.24153]
[1723360670456,0.07549872,2671.4,2670.9,5.24153]
[1723360670666,0.07549872,2671.4,2671.0,5.62072]
[1723360670869,0.07549872,2671.6,2671.1,5.08796]
[1723360671053,0.07549872,2671.6,2671.2,3.0]
[1723360671258,2.69565872,2671.6,2671.1,3.0]
[1723360671580,3.69521959,2671.6,2671.0,5.62073]
[1723360672116,2.62026,2671.5,2671.0,5.62073]
[1723360672267,2.69586872,2671.4,2671.0,3.0]
[1723360672465,5.46120068,2671.4,2670.8,2.62092]
[1723360672668,5.46120068,2671.4,2670.9,3.0]
[1723360672862,3.42865607,2671.3,2670.9,3.0]
[1723360673068,0.07549872,2671.2,2670.7,3.0]
[1723360673473,2.69606872,2671.2,2670.7,3.0]
[1723360673665,0.07549872,2671.2,2670.7,5.62102]
[1723360674481,0.07549872,2671.2,2670.8,2.62092]
[1723360674772,0.07549872,2671.2,2670.9,5.62083]
[1723360674994,2.381,2671.5,2671.1,2.62055]
[1723360675191,0.07549872,2671.6,2671.1,2.62055]
[1723360675364,0.24712987,2671.5,2670.9,8.08819]
[1723360675570,0.07549872,2671.4,2670.9,8.08819]
[1723360676476,0.07549872,2671.4,2670.9,5.62079]
[1723360676715,0.07549872,2671.5,2671.1,2.62063]
[1723360677009,2.3958,2671.7,2671.1,2.62063]
[1723360677176,3.865479,2671.7,2671.1,2.62063]
[1723360677784,0.07549872,2671.6,2671.1,2.62063]
[1723360678098,0.07549872,2671.6,2671.0,2.4674]
[1723360678099,2.62044,2671.3,2670.9,3.0]
[1723360678301,2.62044,2671.3,2670.8,3.0]
[1723360678302,0.33754272,2671.2,2670.8,3.0]
[1723360678524,0.07549872,2671.2,2670.8,5.62091]
[1723360679512,2.3958,2671.0,2670.8,3.0]
[1723360679711,3.19805272,2670.9,2670.3,2.62136]
[1723360679913,2.69640872,2670.9,2670.3,2.62136]
[1723360680787,2.69640872,2670.9,2670.2,5.24396541]
[1723360680988,2.62101,2670.8,2670.2,2.62250541]
[1723360681314,0.07549872,2670.7,2670.2,2.62250541]
[1723360681707,3.22828059,2670.7,2670.2,0.00105541]
[1723360681911,2.69653872,2670.7,2670.2,0.00105541]
[1723360682585,2.69653872,2670.7,2670.2,3.00105541]
[1723360682912,0.07549872,2670.7,2670.2,5.62256541]
[1723360683111,0.07549872,2670.8,2670.4,2.62126]
[1723360683500,0.07549872,2670.8,2670.4,2.62125]
[1723360684114,0.07549872,2670.9,2670.4,2.62125]
[1723360685529,0.07549872,2670.9,2670.2,5.62254541]
[1723360685692,2.62095,2670.8,2670.2,5.62254541]
[1723360685898,0.07549872,2670.7,2670.2,5.62254541]
[1723360687029,2.07549872,2670.7,2670.2,5.62254541]
[1723360687798,4.69654872,2670.7,2670.2,5.62254541]
[1723360688205,4.69654872,2670.7,2670.2,3.00105541]
[1723360688421,4.69654872,2670.7,2670.2,0.00105541]
[1723360688936,5.66639859,2670.7,2670.2,0.00105541]
[1723360689438,2.62116,2670.6,2670.2,0.00105541]
[1723360689612,0.07549872,2670.5,2670.2,0.00105541]
[1723360691253,2.69675872,2670.5,2670.2,0.00105541]
[1723360692353,0.07549872,2670.5,2670.2,0.00105541]
[1723360692510,0.07549872,2670.5,2668.7,7.35]
[1723360692511,2.62153,2670.2,2669.4,2.62228]
[1723360692706,0.07549872,2670.1,2669.4,2.62228]
[1723360693560,0.07549872,2670.1,2669.2,2.2826]
[1723360693561,2.3203,2669.9,2669.2,2.62244]
[1723360693875,3.16762872,2669.8,2669.2,2.62248]
[1723360694031,0.07549872,2669.7,2669.2,2.62248]
[1723360694358,4.94247,2669.6,2669.0,2.62262]
[1723360694538,0.07549872,2669.5,2669.0,2.62262]
[1723360695059,0.07549872,2669.5,2668.4,2.62321]
[1723360695060,2.62247,2669.3,2668.4,2.62321]
[1723360695257,2.62247,2669.3,2668.1,2.2826]
[1723360695258,2.62268,2669.1,2668.3,2.62332]
[1723360695425,2.62268,2669.1,2668.1,4.90614]
[1723360695426,0.07549872,2669.0,2668.6,2.62307]
[1723360695757,2.381,2669.4,2668.8,2.62283]
[1723360696260,0.07549872,2669.3,2668.6,4.90567]
[1723360696462,0.07549872,2669.3,2668.0,0.00105628]
[1723360696463,2.62268,2669.1,2668.4,5.24649]
[1723360696625,2.62268,2669.1,2668.0,0.00105628]
[1723360696626,2.3203,2668.9,2668.0,0.00105628]
[1723360696826,0.07549872,2668.8,2668.1,2.6235]
[1723360697022,0.31507859,2668.8,2668.2,2.62348]
[1723360697222,0.24564987,2669.2,2668.0,2.28365628]
[1723360697223,0.24564987,2669.2,2668.7,2.62291]
[1723360697432,2.381,2669.4,2668.4,0.0711137]
[1723360697638,2.45649872,2669.4,2668.9,2.62271]
[1723360698163,0.07549872,2669.4,2668.9,2.62271]
[1723360698365,2.79043,2669.8,2669.2,2.62244]
[1723360698590,2.3203,2669.8,2669.2,2.62244]
[1723360698883,2.3203,2669.8,2669.4,2.6223]
[1723360698884,0.07549872,2669.8,2669.4,2.6223]
[1723360699185,0.07549872,2669.8,2668.5,5.62313]
[1723360699186,2.6226,2669.1,2668.5,5.62313]
[1723360699490,0.07549872,2669.0,2668.5,5.62313]
[1723360699875,0.07549872,2669.0,2668.5,5.62311]
[1723360700371,5.32079872,2669.1,2668.5,5.62311]
[1723360700574,0.77017987,2669.0,2668.5,3.0]
[1723360700750,0.07549872,2668.9,2668.4,3.0]
[1723360700957,0.07549872,2668.9,2668.3,2.62335]
[1723360701166,2.69831872,2668.9,2668.3,2.62335]
[1723360701654,0.07549872,2668.9,2668.5,2.62311]
[1723360702079,4.7013,2669.3,2668.5,2.62311]
[1723360702080,0.07549872,2669.1,2668.5,2.62311]
[1723360702263,0.07549872,2669.1,2668.7,2.62299]
[1723360702264,0.47767987,2669.1,2668.7,2.62299]
[1723360702466,0.07549872,2669.2,2668.7,2.62299]
[1723360703284,2.69799872,2669.2,2668.5,2.62309]
[1723360703589,0.73992987,2669.1,2668.6,3.0]
[1723360703792,2.69827872,2669.0,2668.4,3.0]
[1723360703961,0.34382086,2668.9,2668.4,3.0]
[1723360704163,0.07549872,2668.8,2668.4,3.0]
[1723360704361,5.00557872,2668.8,2668.2,3.0]
[1723360704605,0.07549872,2668.7,2668.2,3.0]
[1723360704757,0.61043868,2668.7,2668.2,3.0]
[1723360707218,0.07549872,2668.7,2668.2,3.0]
[1723360707380,2.3071,2669.2,2668.5,2.62311]
[1723360707573,0.07549872,2669.1,2668.6,2.62301]
[1723360708504,0.07549872,2669.1,2668.7,2.62298]
[1723360708692,0.07549872,2669.1,2668.5,2.62311]
[1723360708900,0.81410559,2669.1,2668.5,2.62311]
[1723360709918,0.81410559,2669.1,2668.0,0.00105628]
[1723360709919,4.76359872,2669.0,2668.0,0.00105628]
[1723360710203,2.62319,2668.6,2668.0,0.00105628]
[1723360710385,0.07549872,2668.5,2668.0,2.62472628]
[1723360710978,0.07549872,2668.5,2668.0,0.00105628]
[1723360711380,0.58346759,2668.5,2668.0,0.00105628]
[1723360712226,0.58346759,2668.5,2668.1,2.62358]
[1723360712381,0.07549872,2668.6,2668.1,2.62358]
[1723360712791,0.07549872,2668.6,2668.0,0.00105628]
[1723360712792,2.69858872,2668.6,2668.0,0.00105628]
[1723360713007,3.46883959,2668.6,2668.0,0.00105628]
[1723360713580,2.62344,2668.3,2668.0,0.00105628]
[1723360713783,0.07549872,2668.2,2668.0,0.00105628]
[1723360714410,7.31168,2668.1,2666.9,2.405]
[1723360714616,2.62381,2667.9,2667.3,2.62428]
[1723360714912,0.07549872,2667.8,2667.3,2.62428]
[1723360715712,7.3,2668.0,2667.4,2.405]
[1723360716018,7.3,2668.0,2667.7,2.62389]
[1723360716200,9.681,2668.4,2667.9,2.62378]
[1723360716517,0.07549872,2668.3,2667.9,2.62378]
[1723360716885,7.3,2668.4,2668.0,2.62361]
[1723360717198,21.871,2668.7,2668.3,2.62336]
[1723360717403,0.84574959,2668.6,2668.1,2.62351]
[1723360717602,0.07549872,2668.6,2668.1,2.62351]
[1723360718581,0.07549872,2668.7,2668.1,2.62351]
[1723360718796,0.07549872,2668.7,2668.3,2.62339]
[1723360720013,0.07549872,2668.7,2668.1,2.62351]
[1723360720217,0.07549872,2668.7,2667.9,2.405]
[1723360720414,0.07549872,2668.9,2668.6,2.62309]
[1723360720619,0.07549872,2668.9,2668.4,5.02823]
[1723360721046,0.07549872,2668.9,2668.4,7.65145]
[1723360722692,0.07549872,2668.9,2668.4,5.02822]
[1723360722912,0.07549872,2668.9,2668.4,5.02821]
[1723360723422,0.07549872,2668.9,2668.4,7.65143]
[1723360724299,0.07549872,2668.9,2668.4,5.02821]
[1723360727132,2.69829872,2668.9,2668.4,5.02821]
[1723360728907,4.19110659,2668.9,2668.4,2.62321]
[1723360731420,0.07549872,2668.9,2668.4,2.62321]
[1723360731621,0.07549872,2668.9,2668.2,2.62343]
[1723360731622,2.69836872,2668.9,2668.2,2.62343]
[1723360731924,2.69836872,2668.9,2668.3,3.0]
[1723360731925,2.62301,2668.7,2668.3,3.0]
[1723360732126,0.07549872,2668.6,2668.3,3.0]